bitfinex/quotes_BTCUSD_20241120
["timestamp","ask_amount","ask_price","bid_price","bid_amount"]
[1732126829758,0.01,93812.0,93797.0,0.023]
[1732126830005,0.01,93812.0,93811.0,0.010659]
[1732126830255,0.003378,93816.0,93815.0,0.010659]
[1732126830502,0.023378,93816.0,93815.0,0.010659]
[1732126830744,0.003378,93816.0,93815.0,0.010659]
[1732126830985,0.0166765,93816.0,93813.0,0.010659]
[1732126831259,0.0166765,93816.0,93815.0,0.010659]
[1732126831508,0.0166765,93816.0,93815.0,0.033659]
[1732126831509,5e-07,93816.0,93815.0,0.033659]
[1732126831756,0.0956,93834.0,93833.0,0.010657]
[1732126832002,0.01,93841.0,93833.0,0.010657]
[1732126832248,0.0756,93846.0,93845.0,0.010655]
[1732126832718,0.0956,93846.0,93845.0,0.010655]
[1732126833192,0.0856,93846.0,93845.0,0.010655]
[1732126833426,0.0956,93846.0,93845.0,0.010655]
[1732126833656,0.0976,93846.0,93845.0,0.010655]
[1732126833904,0.23904086,93846.0,93845.0,0.010655]
[1732126834158,0.23904086,93846.0,93825.0,0.010658]
[1732126834159,0.01,93823.0,93788.0,0.0774]
[1732126834394,0.01,93817.0,93816.0,0.021318]
[1732126834694,0.13691086,93817.0,93816.0,0.021318]
[1732126835175,0.20022853,93817.0,93816.0,0.021318]
[1732126835426,0.15856943,93817.0,93816.0,0.021318]
[1732126836157,0.24836943,93817.0,93816.0,0.021318]
[1732126836398,0.30656943,93817.0,93816.0,0.021318]
[1732126836628,0.30456943,93817.0,93816.0,0.021318]
[1732126837121,0.02,93815.0,93814.0,0.021318]
[1732126837360,0.17856943,93815.0,93814.0,0.021318]
[1732126838538,0.17852269,93815.0,93814.0,0.021318]
[1732126839038,0.17852269,93815.0,93795.0,0.021322]
[1732126839039,0.52,93796.0,93795.0,0.021322]
[1732126839276,0.72548726,93796.0,93795.0,0.021322]
[1732126839504,0.75711247,93796.0,93795.0,0.021322]
[1732126841126,0.24711247,93796.0,93795.0,0.021322]
[1732126841360,0.25711247,93796.0,93795.0,0.021322]
[1732126841832,0.25708663,93796.0,93795.0,0.021322]
[1732126843472,0.79964267,93796.0,93795.0,0.021322]
[1732126843725,0.85614267,93796.0,93795.0,0.021322]
[1732126843983,0.85614267,93796.0,93769.0,0.021328]
[1732126843984,0.02,93769.0,93768.0,0.021329]
[1732126844243,0.14687339,93769.0,93768.0,0.021329]
[1732126844951,0.14887339,93769.0,93768.0,0.021329]
[1732126845180,0.022,93765.0,93764.0,0.021329]
[1732126845431,0.64887339,93765.0,93764.0,0.021329]
[1732126845879,0.82284512,93765.0,93764.0,0.021329]
[1732126846113,0.81284512,93765.0,93764.0,0.021329]
[1732126846355,0.82284512,93765.0,93764.0,0.021329]
[1732126846570,1.03079933,93765.0,93764.0,0.021329]
[1732126846793,1.03085482,93765.0,93764.0,0.021329]
[1732126848194,0.97948722,93765.0,93764.0,0.021329]
[1732126848404,1.22062019,93765.0,93764.0,0.021329]
[1732126849117,1.29632019,93765.0,93764.0,0.021329]
[1732126849355,1.29632019,93765.0,93761.0,0.02133]
[1732126849356,0.022,93762.0,93761.0,0.02133]
[1732126849572,0.18044934,93762.0,93761.0,0.02133]
[1732126849810,0.37020055,93762.0,93761.0,0.02133]
[1732126850079,0.8296352,93762.0,93761.0,0.02133]
[1732126850294,0.79804491,93762.0,93761.0,0.02133]
[1732126850518,0.6082937,93762.0,93761.0,0.02133]
[1732126850741,0.63988399,93762.0,93761.0,0.02133]
[1732126850964,0.52882144,93762.0,93761.0,0.02133]
[1732126851223,0.49702983,93762.0,93761.0,0.02133]
[1732126851444,0.14685905,93762.0,93761.0,0.02133]
[1732126851670,0.28917296,93762.0,93761.0,0.02133]
[1732126852144,0.49704337,93762.0,93761.0,0.02133]
[1732126852381,0.57633678,93762.0,93761.0,0.02133]
[1732126852596,0.57633678,93762.0,93743.0,0.00042987]
[1732126852597,0.01,93750.0,93725.0,0.023]
[1732126852837,0.01,93750.0,93749.0,0.021333]
[1732126853269,0.012,93751.0,93750.0,0.021333]
[1732126853485,0.03174393,93751.0,93750.0,0.021333]
[1732126853773,0.11911512,93751.0,93750.0,0.021333]
[1732126854179,0.11711512,93751.0,93750.0,0.021333]
[1732126855070,0.13685905,93751.0,93750.0,0.021333]
[1732126855283,0.11711512,93751.0,93750.0,0.021333]
[1732126855552,0.26020102,93751.0,93750.0,0.021333]
[1732126855798,0.26020102,93751.0,93735.0,0.021336]
[1732126855799,0.0081,93736.0,93735.0,0.021336]
[1732126856073,0.05120612,93736.0,93735.0,0.021336]
[1732126856314,0.0792,93762.0,93745.0,0.13353304]
[1732126856568,0.01,93762.0,93761.0,0.02133]
[1732126857072,0.51,93764.0,93763.0,0.02133]
[1732126858035,0.5,93764.0,93763.0,0.02133]
[1732126859228,0.5,93775.0,93765.0,0.063987]
[1732126859458,0.5,93775.0,93764.0,0.023]
[1732126859459,0.5,93775.0,93774.0,0.021327]
[1732126859920,0.60711512,93775.0,93774.0,0.021327]
[1732126861551,0.51,93780.0,93779.0,0.021326]
[1732126861789,0.0816,93784.0,93779.0,0.021326]
[1732126862013,0.01,93787.0,93786.0,0.021325]
[1732126862238,0.0819,93795.0,93791.0,0.021324]
[1732126862239,0.002,93793.0,93791.0,0.021324]
[1732126862471,0.0819,93795.0,93794.0,0.021323]
[1732126862713,0.502,93798.0,93797.0,0.021322]
[1732126862927,0.5,93798.0,93797.0,0.021322]
[1732126863168,0.60911512,93798.0,93797.0,0.021322]
[1732126863463,0.60911512,93798.0,93780.0,0.021326]
[1732126863464,0.01,93713.0,93712.0,0.021341]
[1732126863671,0.01,93714.0,93713.0,0.021341]
[1732126863923,0.01,93715.0,93714.0,0.021341]
[1732126864642,0.022,93715.0,93714.0,0.021341]
[1732126864870,0.1167101,93715.0,93714.0,0.021341]
[1732126865363,0.64206515,93719.0,93706.0,0.02179402]
[1732126865364,0.02,93712.0,93706.0,0.00045102]
[1732126865594,0.022,93712.0,93706.0,0.00045102]
[1732126866027,0.37117664,93712.0,93706.0,0.00045102]
[1732126866261,0.37118917,93712.0,93709.0,0.021342]
[1732126866549,0.37099981,93712.0,93711.0,0.021742]
[1732126866737,0.022,93712.0,93711.0,0.021742]
[1732126867172,0.022,93712.0,93711.0,0.02416148]
[1732126867431,0.022,93712.0,93711.0,0.00281948]
[1732126867687,0.37092577,93712.0,93711.0,0.0004]
[1732126867904,0.37092577,93712.0,93706.0,0.00045102]
[1732126867905,0.522,93707.0,93706.0,0.00045102]
[1732126868127,0.87092577,93707.0,93706.0,0.00045102]
[1732126868361,1.07956253,93707.0,93706.0,0.00045102]
[1732126868582,1.0751459,93707.0,93706.0,0.00045102]
[1732126868798,1.0771459,93707.0,93706.0,0.00045102]
[1732126869044,1.11470617,93707.0,93706.0,0.00045102]
[1732126869247,1.11470617,93707.0,93691.0,0.0004]
[1732126869248,0.022,93702.0,93691.0,0.0004]
[1732126869501,0.128724,93699.0,93691.0,0.0004]
[1732126869719,0.62873,93694.0,93693.0,0.0093951]
[1732126869967,0.62873,93694.0,93655.0,0.021354]
[1732126869968,0.012,93672.0,93663.0,0.021353]
[1732126870202,0.012,93672.0,93668.0,0.021351]
[1732126870203,0.36092577,93672.0,93668.0,0.021351]
[1732126870449,0.012,93669.0,93668.0,0.021351]
[1732126870678,0.512,93662.0,93661.0,0.021353]
[1732126870895,0.71325081,93662.0,93661.0,0.021353]
[1732126871130,0.61911512,93662.0,93661.0,0.02353207]
[1732126871330,0.61911512,93662.0,93661.0,0.021353]
[1732126871564,0.9662254,93662.0,93661.0,0.021353]
[1732126871789,0.96623765,93662.0,93661.0,0.021353]
[1732126872040,0.012,93661.0,93659.0,0.021353]
[1732126872304,0.46624495,93661.0,93659.0,0.021353]
[1732126872560,0.66451633,93661.0,93659.0,0.021353]
[1732126872788,0.66451633,93661.0,93652.0,7e-05]
[1732126873023,0.66451633,93661.0,93660.0,1.021353]
[1732126873262,0.23565787,93664.0,93662.0,0.021353]
[1732126873263,0.13747196,93664.0,93662.0,0.021353]
[1732126873477,0.23565787,93671.0,93670.0,0.021351]
[1732126873726,0.01,93695.0,93670.0,0.021351]
[1732126873727,0.0939124,93672.0,93671.0,0.044351]
[1732126873989,0.1408686,93677.0,93676.0,0.02135]
[1732126874257,0.1408686,93677.0,93676.0,0.010675]
[1732126874258,0.21102441,93677.0,93676.0,0.010675]
[1732126874480,0.11711512,93677.0,93676.0,0.01356528]
[1732126874699,0.10711512,93677.0,93676.0,0.010675]
[1732126875185,0.10711512,93677.0,93617.0,0.0811]
[1732126875186,0.51,93661.0,93617.0,0.0811]
[1732126875442,0.89501512,93661.0,93660.0,0.97869878]
[1732126875670,0.89501512,93661.0,93660.0,0.95703966]
[1732126875926,0.89501512,93661.0,93660.0,0.94645796]
[1732126876176,0.84301512,93661.0,93660.0,0.94645796]
[1732126876403,0.98373259,93661.0,93660.0,0.94645796]
[1732126876635,0.98373259,93661.0,93660.0,0.94374021]
[1732126876869,0.022,93653.0,93651.0,0.0004]
[1732126877082,0.12911512,93653.0,93651.0,0.0004]
[1732126877298,0.20651512,93653.0,93651.0,0.0004]
[1732126877795,0.01,93639.0,93638.0,0.010679]
[1732126878040,0.12711512,93639.0,93638.0,0.010679]
[1732126878264,0.12911512,93639.0,93638.0,0.010679]
[1732126878481,0.502,93632.0,93631.0,0.01068]
[1732126878698,0.60911512,93632.0,93631.0,0.01068]
[1732126879187,0.60711512,93632.0,93631.0,0.01068]
[1732126879450,0.51,93644.0,93643.0,0.010678]
[1732126879693,0.61911512,93644.0,93643.0,0.010678]
[1732126879939,0.60711512,93644.0,93643.0,0.010678]
[1732126880413,0.2139,93661.0,93660.0,0.010676]
[1732126880656,0.32101512,93661.0,93660.0,0.010676]
[1732126881099,0.32101512,93661.0,93644.0,0.010678]
[1732126881100,0.002,93642.0,93641.0,0.010679]
[1732126881365,0.5,93651.0,93650.0,0.010678]
[1732126881606,0.60711512,93651.0,93650.0,0.010678]
[1732126882090,0.61911512,93651.0,93650.0,0.010678]
[1732126882339,0.61911512,93651.0,93650.0,0.010178]
[1732126882340,0.62911512,93651.0,93650.0,0.010178]
[1732126882583,0.002,93646.0,93645.0,0.010678]
[1732126882803,0.11911512,93646.0,93645.0,0.010678]
[1732126883715,0.10711512,93646.0,93645.0,0.010678]
[1732126884477,0.10911512,93646.0,93645.0,0.010678]
[1732126885173,0.10711512,93646.0,93645.0,0.010678]
[1732126885621,0.0469,93673.0,93655.0,0.010677]
[1732126885622,0.002,93656.0,93655.0,0.010677]
[1732126885873,0.11911512,93656.0,93655.0,0.010677]
[1732126886104,0.10911512,93656.0,93655.0,0.010677]
[1732126886607,0.10711512,93656.0,93655.0,0.010677]
[1732126886829,0.5,93659.0,93658.0,0.010677]
[1732126887050,0.51,93675.0,93674.0,0.010675]
[1732126887267,0.11911512,93675.0,93674.0,0.010675]
[1732126887747,0.10711512,93675.0,93674.0,0.010675]
[1732126888461,0.10711512,93675.0,93658.0,0.010677]
[1732126888678,0.17182663,93674.0,93673.0,0.010675]
[1732126888898,0.10911512,93674.0,93673.0,0.010675]
[1732126889202,0.10711512,93674.0,93673.0,0.010675]
[1732126889454,0.07711512,93674.0,93673.0,0.010675]
[1732126891269,0.5,93679.0,93678.0,0.010674]
[1732126891483,0.60711512,93679.0,93678.0,0.010674]
[1732126892383,0.502,93688.0,93685.0,0.010673]
[1732126892604,0.03780256,93692.0,93687.0,0.010673]
[1732126892821,0.03780256,93692.0,93674.0,0.010675]
[1732126892822,0.09379326,93717.0,93709.0,0.010671]
[1732126893086,0.0892,93727.0,93684.0,0.18589989]
[1732126893087,0.09379326,93723.0,93722.0,0.010669]
[1732126893347,0.002,93733.0,93727.0,0.010669]
[1732126893580,0.002,93736.0,93735.0,0.010668]
[1732126893799,0.002,93740.0,93739.0,0.010667]
[1732126894012,0.512,93741.0,93740.0,0.010667]
[1732126895001,0.51,93741.0,93740.0,0.010667]
[1732126895241,0.60911512,93741.0,93740.0,0.010667]
[1732126895466,0.03825616,93747.0,93737.0,0.010668]
[1732126895467,0.5,93751.0,93750.0,0.010666]
[1732126895695,0.5,93751.0,93741.0,0.010667]
[1732126895696,0.0004,93759.0,93748.0,0.010666]
[1732126895911,0.0004,93759.0,93758.0,0.010665]
[1732126896429,0.0004,93759.0,93758.0,0.03626941]
[1732126896664,0.0017136,93771.0,93770.0,0.010664]
[1732126896892,0.0017136,93771.0,93770.0,0.033664]
[1732126897150,0.0017136,93771.0,93770.0,0.03615277]
[1732126897873,0.0017136,93771.0,93770.0,0.01315277]
[1732126898547,6e-07,93771.0,93770.0,0.01315277]
[1732126900738,0.62711572,93771.0,93770.0,0.00248877]
[1732126900958,0.73112443,93771.0,93770.0,0.00248877]
[1732126901174,0.502,93745.0,93744.0,0.010667]
[1732126901427,0.60711512,93745.0,93744.0,0.010667]
[1732126901670,0.60911512,93745.0,93744.0,0.010667]
[1732126901900,0.61911512,93745.0,93744.0,0.010667]
[1732126902176,0.60711512,93745.0,93744.0,0.010667]
[1732126903343,0.5,93745.0,93744.0,0.010667]
[1732126904088,0.60911512,93745.0,93744.0,0.010667]
[1732126904536,0.5,93745.0,93744.0,0.010667]
[1732126905736,0.60911512,93745.0,93744.0,0.010667]
[1732126907045,0.002,93737.0,93736.0,0.032004]
[1732126907265,0.002,93734.0,93722.0,0.03903734]
[1732126907486,0.5,93724.0,93723.0,0.010669]
[1732126907701,0.5,93724.0,93695.0,0.0466]
[1732126907702,0.002,93713.0,93695.0,0.0466]
[1732126907935,0.002,93713.0,93712.0,0.01067]
[1732126910702,0.502,93731.0,93730.0,0.010668]
[1732126910911,0.60911512,93731.0,93730.0,0.010668]
[1732126911759,0.60911512,93731.0,93707.0,0.021343]
[1732126911760,0.002,93726.0,93696.0,0.20711512]
[1732126911970,0.10711512,93725.0,93697.0,0.021345]
[1732126912173,0.10711512,93725.0,93724.0,0.010669]
[1732126913525,0.10911512,93725.0,93724.0,0.010669]
[1732126913988,0.10711512,93725.0,93724.0,0.010669]
[1732126914217,0.10711512,93725.0,93713.0,0.0008557]
[1732126914218,0.5,93720.0,93713.0,0.0008557]
[1732126914439,0.5,93720.0,93719.0,0.01067]
[1732126914662,0.5,93720.0,93713.0,0.0008557]
[1732126914894,0.002,93714.0,93713.0,0.0008557]
[1732126915753,0.10911512,93714.0,93713.0,0.0115257]
[1732126916827,0.10911512,93714.0,93713.0,0.0008557]
[1732126917294,0.10911512,93714.0,93713.0,0.0115257]
[1732126917545,0.10911512,93714.0,93713.0,0.0008557]
[1732126917546,0.29773363,93714.0,93713.0,0.0008557]
[1732126917973,0.29773363,93714.0,93698.0,0.010672]
[1732126917974,0.502,93699.0,93698.0,0.010672]
[1732126918411,0.60911512,93699.0,93698.0,0.010672]
[1732126919066,0.002,93695.0,93694.0,0.010672]
[1732126919284,0.002,93694.0,93687.0,0.010673]
[1732126919507,0.502,93689.0,93688.0,0.010673]
[1732126919745,0.60911512,93689.0,93688.0,0.010673]
[1732126920238,0.60711512,93689.0,93688.0,0.010673]
[1732126920482,0.60911512,93689.0,93688.0,0.010673]
[1732126921239,0.10711512,93689.0,93688.0,0.010673]
[1732126921505,0.002,93697.0,93696.0,0.010672]
[1732126921738,0.53929261,93699.0,93697.0,0.010672]
[1732126921739,0.10911512,93698.0,93697.0,0.010672]
[1732126921972,0.002,93694.0,93693.0,0.010673]
[1732126922206,0.10711512,93698.0,93697.0,0.010672]
[1732126922447,0.10711512,93698.0,93677.0,0.010674]
[1732126922448,0.5,93711.0,93710.0,0.010671]
[1732126922689,0.502,93711.0,93710.0,0.010671]
[1732126922945,0.002,93698.0,93697.0,0.01319208]
[1732126923181,0.01,93710.0,93673.0,0.0008566]
[1732126923182,0.502,93710.0,93673.0,0.0008566]
[1732126923429,0.502,93710.0,93707.0,0.010671]
[1732126923430,0.10711512,93709.0,93707.0,0.010671]
[1732126923648,0.10711512,93709.0,93685.0,0.010674]
[1732126923649,0.002,93701.0,93696.0,0.010672]
[1732126923895,0.002,93695.0,93694.0,0.010673]
[1732126924137,0.002,93695.0,93631.0,0.0024]
[1732126924138,0.002,93690.0,93689.0,0.010673]
[1732126924395,0.002,93688.0,93687.0,0.010673]
[1732126924930,0.002,93690.0,93689.0,0.010673]
[1732126925179,0.002,93686.0,93658.0,0.1226]
[1732126925409,0.5,93687.0,93682.0,0.010674]
[1732126925410,0.002,93683.0,93682.0,0.010674]
[1732126925628,0.10911512,93684.0,93683.0,0.010674]
[1732126925861,0.10711512,93684.0,93683.0,0.010674]
[1732126927036,0.10711512,93684.0,93682.0,0.010674]
[1732126927037,0.10711512,93684.0,93669.0,0.010675]
[1732126927256,0.10711512,93684.0,93683.0,0.010674]
[1732126928200,0.10711512,93684.0,93641.0,0.010678]
[1732126928201,0.002,93674.0,93673.0,0.0115316]
[1732126928427,0.10711512,93684.0,93674.0,0.010675]
[1732126928428,0.002,93675.0,93674.0,0.010675]
[1732126928883,0.02169742,93675.0,93674.0,0.010675]
[1732126929149,0.02169742,93675.0,93673.0,0.0008566]
[1732126929588,0.16561512,93674.0,93673.0,0.0008566]
[1732126929835,0.25461512,93674.0,93673.0,0.0008566]
[1732126930057,0.502,93667.0,93666.0,0.010676]
[1732126930276,0.502,93667.0,93665.0,0.010676]
[1732126930277,0.62881254,93667.0,93665.0,0.010676]
[1732126930511,0.12681254,93666.0,93657.0,0.010677]
[1732126930749,0.002,93653.0,93652.0,0.010677]
[1732126931102,0.10911512,93653.0,93652.0,0.010677]
[1732126931316,0.12681254,93653.0,93652.0,0.00241386]
[1732126931546,0.12881254,93653.0,93652.0,0.00241386]
[1732126931834,0.002,93652.0,93651.0,0.0008568]
[1732126932067,0.002,93652.0,93630.0,0.50208673]
[1732126932068,0.002,93632.0,93630.0,0.50208673]
[1732126932355,0.10911512,93632.0,93631.0,0.01108]
[1732126932536,0.11882809,93632.0,93631.0,0.01108]
[1732126932759,0.11882809,93632.0,93631.0,0.0004]
[1732126933256,0.11882809,93632.0,93631.0,0.01108]
[1732126934431,0.01971297,93632.0,93631.0,0.01108]
[1732126935082,0.62682809,93632.0,93631.0,0.01071478]
[1732126935310,0.60711512,93632.0,93631.0,0.01071478]
[1732126935567,0.6267749,93632.0,93631.0,0.01071478]
[1732126936544,0.6267749,93632.0,93631.0,3.478e-05]
[1732126936977,0.6267749,93632.0,93631.0,0.01071478]
[1732126937440,0.6267749,93632.0,93631.0,0.01157118]
[1732126938145,0.6267749,93632.0,93631.0,0.01068]
[1732126938851,0.62675636,93632.0,93631.0,0.01068]
[1732126939063,0.62675636,93632.0,93626.0,0.01068]
[1732126939280,0.62675636,93632.0,93601.0,0.08909989]
[1732126939281,0.01964124,93632.0,93631.0,0.01068]
[1732126939518,0.51964081,93632.0,93601.0,0.0791]
[1732126939732,0.01,93634.0,93553.0,0.010689]
[1732126939733,0.5,93622.0,93615.0,0.010681]
[1732126939990,0.5,93622.0,93621.0,0.010681]
[1732126940240,0.55106742,93622.0,93621.0,0.010681]
[1732126940478,0.01964143,93622.0,93621.0,0.010681]
[1732126941179,0.5,93641.0,93640.0,0.010679]
[1732126941363,0.5,93628.0,93608.0,0.010682]
[1732126941655,0.5,93628.0,93627.0,0.01068]
[1732126942350,0.01,93621.0,93620.0,0.010681]
[1732126943002,0.01,93625.0,93620.0,0.021362]
[1732126943264,0.01,93617.0,93616.0,0.010681]
[1732126944016,0.01,93619.0,93618.0,0.010681]
[1732126944258,0.01964144,93628.0,93627.0,0.01068]
[1732126944495,0.01964144,93628.0,93627.0,0.29664721]
[1732126944760,4.4e-07,93628.0,93627.0,0.29664721]
[1732126945015,0.01,93648.0,93643.0,0.010678]
[1732126945270,0.02,93642.0,93641.0,0.010679]
[1732126945507,0.12711512,93642.0,93641.0,0.010679]
[1732126945757,0.11711512,93642.0,93641.0,0.010679]
[1732126946005,0.01,93636.0,93635.0,0.010679]
[1732126946252,0.11711512,93636.0,93635.0,0.010679]
[1732126946746,0.02,93634.0,93632.0,0.01068]
[1732126947001,0.11711512,93633.0,93632.0,0.01068]
[1732126947247,0.12711512,93633.0,93632.0,0.01068]
[1732126947486,0.15860059,93633.0,93632.0,0.01068]
[1732126947965,0.15860059,93633.0,93623.0,0.010681]
[1732126947966,0.02,93624.0,93623.0,0.010681]
[1732126948187,0.15860059,93624.0,93623.0,0.010681]
[1732126948942,0.05148864,93624.0,93623.0,0.010681]
[1732126950878,0.02,93624.0,93623.0,0.010681]
[1732126951110,0.05149719,93624.0,93623.0,0.010681]
[1732126951337,0.04149719,93624.0,93623.0,0.010681]
[1732126951815,0.03149719,93624.0,93623.0,0.010681]
[1732126952050,0.01,93631.0,93630.0,0.01068]
[1732126952308,0.03151553,93631.0,93630.0,0.01068]
[1732126952545,0.04151553,93631.0,93630.0,0.01068]
[1732126953508,0.03151553,93631.0,93630.0,0.01068]
[1732126953998,0.001714,93633.0,93632.0,0.01068]
[1732126954245,0.001714,93633.0,93632.0,0.19265425]
[1732126955157,0.001714,93633.0,93632.0,0.01068]
[1732126957021,0.02147151,93633.0,93632.0,0.01068]
[1732126957978,0.002,93673.0,93667.0,0.010676]
[1732126957979,0.01,93669.0,93667.0,0.010676]
[1732126958204,0.01,93668.0,93667.0,0.010676]
[1732126959668,0.12711512,93668.0,93667.0,0.010676]
[1732126959924,0.002,93666.0,93665.0,0.010676]
[1732126960162,0.002,93666.0,93660.0,0.010676]
[1732126960163,0.022,93661.0,93660.0,0.010676]
[1732126960410,0.02,93655.0,93654.0,0.010677]
[1732126960667,0.12711512,93655.0,93654.0,0.010677]
[1732126961381,0.01,93658.0,93655.0,0.010677]
[1732126961627,0.02,93658.0,93657.0,0.010677]
[1732126962586,0.01,93658.0,93657.0,0.010677]
[1732126963082,0.01,93658.0,93651.0,0.010677]
[1732126963302,0.01,93658.0,93657.0,0.010677]
[1732126963988,0.04164692,93658.0,93657.0,0.010677]
[1732126964467,0.05144635,93658.0,93657.0,0.010677]
[1732126965156,0.14603589,93658.0,93657.0,0.010677]
[1732126965616,0.05144635,93658.0,93657.0,0.010677]
[1732126966886,0.04144635,93658.0,93657.0,0.010677]
[1732126968307,0.05144635,93658.0,93657.0,0.010677]
[1732126968569,0.02,93658.0,93657.0,0.010677]
[1732126969039,0.02,93658.0,93651.0,0.010677]
[1732126969040,0.01,93658.0,93651.0,0.010677]
[1732126969268,0.01,93657.0,93656.0,0.010677]
[1732126969981,0.02977589,93657.0,93656.0,0.021354]
[1732126972119,0.01,93657.0,93656.0,0.021354]
[1732126972341,0.02977905,93657.0,93656.0,0.010677]
[1732126972582,0.01977905,93657.0,93656.0,0.010677]
[1732126973747,0.01877905,93657.0,93656.0,0.010677]
[1732126974451,0.01,93631.0,93625.0,0.01068]
[1732126974688,0.002,93639.0,93591.0,0.0808]
[1732126974689,0.02,93624.0,93591.0,0.0808]
[1732126974951,0.12711512,93624.0,93623.0,0.011538]
[1732126975189,0.25566514,93624.0,93623.0,0.011538]
[1732126975449,0.01,93619.0,93591.0,0.0808]
[1732126975682,0.01,93619.0,93618.0,0.010681]
[1732126975914,1.16975432,93619.0,93618.0,0.010681]
[1732126976142,1.20138709,93619.0,93618.0,0.010681]
[1732126976370,0.40184719,93619.0,93618.0,0.010681]
[1732126976581,0.86051461,93619.0,93618.0,0.010681]
[1732126977509,0.37021442,93619.0,93618.0,0.010681]
[1732126977969,0.37021442,93619.0,93611.0,0.010682]
[1732126977970,0.01,93612.0,93611.0,0.010682]
[1732126978190,0.01,93615.0,93614.0,0.010682]
[1732126978442,0.6443854,93615.0,93614.0,0.010682]
[1732126979409,0.35996743,93615.0,93614.0,0.010682]
[1732126979670,0.46708255,93615.0,93614.0,0.010682]
[1732126979914,0.46708255,93615.0,93611.0,0.010682]
[1732126979915,0.02,93612.0,93611.0,0.010682]
[1732126980177,0.47708255,93612.0,93611.0,0.010682]
[1732126980879,0.02,93610.0,93609.0,0.010682]
[1732126981105,0.36996743,93610.0,93609.0,0.010682]
[1732126981343,0.01,93592.0,93584.0,0.010685]
[1732126981592,0.14208571,93593.0,93592.0,0.010684]
[1732126981826,0.14208571,93593.0,93591.0,0.010684]
[1732126981827,0.01,93597.0,93596.0,0.010684]
[1732126982055,0.54915717,93597.0,93596.0,0.00895756]
[1732126982342,0.53915717,93597.0,93596.0,0.00895756]
[1732126982572,0.15206782,93599.0,93598.0,0.010683]
[1732126983075,0.01,93599.0,93598.0,0.010683]
[1732126983839,0.1994636,93603.0,93598.0,0.010683]
[1732126983840,0.14202903,93603.0,93600.0,0.010683]
[1732126984102,0.09469056,93602.0,93601.0,0.010683]
[1732126984333,0.09469056,93603.0,93602.0,0.010683]
[1732126984553,0.01,93606.0,93604.0,0.010683]
[1732126984817,0.09467157,93605.0,93604.0,0.010683]
[1732126985049,0.26914415,93605.0,93604.0,0.010683]
[1732126985274,0.26914415,93605.0,93598.0,0.010683]
[1732126985275,0.02,93603.0,93598.0,0.010683]
[1732126985504,0.1619708,93601.0,93600.0,0.010683]
[1732126985779,0.01,93587.0,93586.0,0.010685]
[1732126986065,0.02,93587.0,93586.0,0.010685]
[1732126986306,0.02,93583.0,93582.0,0.010685]
[1732126986535,0.01,93586.0,93585.0,0.010685]
[1732126986763,0.11460441,93586.0,93585.0,0.010685]
[1732126986988,0.62711512,93586.0,93585.0,0.010685]
[1732126987248,0.97632259,93586.0,93585.0,0.010685]
[1732126987495,0.62711512,93586.0,93585.0,0.010685]
[1732126987965,0.02,93582.0,93581.0,0.010685]
[1732126988189,0.01,93582.0,93581.0,0.010685]
[1732126988419,0.02,93582.0,93581.0,0.010685]
[1732126988672,0.01,93582.0,93581.0,0.010685]
[1732126988893,0.12711512,93582.0,93581.0,0.010685]
[1732126989376,0.12711512,93582.0,93580.0,0.0008564]
[1732126989377,0.01,93581.0,93580.0,0.00012447]
[1732126989620,0.12711512,93581.0,93580.0,0.01066636]
[1732126989839,0.47600803,93581.0,93580.0,0.01066636]
[1732126990069,0.66493225,93581.0,93580.0,0.01066636]
[1732126990332,0.01,93572.0,93571.0,0.011087]
[1732126990587,0.12711512,93572.0,93571.0,0.0004]
[1732126990836,0.26873796,93572.0,93571.0,0.0004]
[1732126991097,0.66643564,93572.0,93571.0,0.0004]
[1732126991342,0.49525624,93572.0,93571.0,0.0004]
[1732126991575,0.68407317,93572.0,93571.0,0.011087]
[1732126991801,0.49525624,93572.0,93571.0,0.011087]
[1732126992036,0.73115521,93572.0,93571.0,0.0004]
[1732126992272,0.73115521,93572.0,93571.0,0.011087]
[1732126992561,0.01,93568.0,93567.0,0.010687]
[1732126992777,0.35287892,93568.0,93567.0,0.010687]
[1732126993026,0.12711512,93568.0,93567.0,0.010687]
[1732126993256,0.12711512,93568.0,93562.0,0.0008553]
[1732126993257,0.01,93568.0,93562.0,0.0008553]
[1732126993504,0.62282737,93591.0,93590.0,0.010684]
[1732126993735,1.09661697,93591.0,93543.0,0.01069]
[1732126993970,0.01,93576.0,93575.0,0.010686]
[1732126994227,0.10430749,93576.0,93575.0,0.021373]
[1732126994534,0.09427918,93578.0,93577.0,0.021372]
[1732126994767,0.01,93588.0,93578.0,0.032058]
[1732126994768,0.09427918,93586.0,93578.0,0.032058]
[1732126994990,0.01,93588.0,93587.0,0.02137]
[1732126995215,0.01,93588.0,93585.0,0.032056]
[1732126995489,0.01,93588.0,93587.0,0.02137]
[1732126995719,0.10426638,93592.0,93585.0,0.032056]
[1732126995947,0.01,93592.0,93591.0,0.021369]
[1732126996215,0.10427251,93596.0,93589.0,0.032054]
[1732126996449,0.10427251,93596.0,93595.0,0.021368]
[1732126996682,0.02,93596.0,93595.0,0.021368]
[1732126997169,0.02,93596.0,93560.0,0.0777]
[1732126997170,0.01,93583.0,93582.0,0.021371]
[1732126997417,0.5992,93583.0,93582.0,0.021371]
[1732126997672,0.69345316,93583.0,93582.0,0.021371]
[1732126997917,0.02,93575.0,93574.0,0.053433]
[1732126998141,0.12711512,93575.0,93574.0,0.021373]
[1732126998365,0.22134876,93575.0,93574.0,0.021373]
[1732126998608,0.12711512,93575.0,93574.0,0.021373]
[1732126999065,0.12711512,93575.0,93571.0,0.053435]
[1732126999066,0.5,93572.0,93571.0,0.053435]
[1732126999299,0.01,93572.0,93571.0,0.053435]